bitfinex-derivatives/quotes_ETHF0:USTF0_20250422
["timestamp","ask_amount","ask_price","bid_price","bid_amount"]
[1745345962938,1.17657,1698.8,1698.7,2.8758129]
[1745345963129,1.17657,1698.8,1698.7,9.1978129]
[1745345963630,4.371,1698.9,1698.8,1.17657]
[1745345963935,1.1765,1699.0,1698.9,1.17647]
[1745345964125,1.17258052,1699.0,1698.9,1.17647]
[1745345964429,1.17641,1699.1,1699.0,1.17643]
[1745345965132,1.17641,1699.1,1699.0,8.0579]
[1745345965730,1.17641,1699.1,1699.0,9.23433]
[1745345966037,1.17641,1699.1,1699.0,8.0579]
[1745345966431,2.85171,1699.1,1699.0,9.23433]
[1745345967236,1.17641,1699.1,1699.0,9.23433]
[1745345967534,41.97635,1699.2,1699.1,1.17636]
[1745345967734,41.97635,1699.2,1699.1,2.83266]
[1745345968237,1.17635,1699.2,1699.1,2.83266]
[1745345968439,1.17635,1699.2,1699.1,1.6563]
[1745345968740,41.97635,1699.2,1699.1,1.6563]
[1745345969041,43.71535,1699.2,1699.1,1.6563]
[1745345970227,1.17636,1699.1,1699.0,6.322]
[1745345970446,2.87006,1699.1,1699.0,7.9664]
[1745345972742,2.87006,1699.1,1699.0,9.14283]
[1745345973143,1.17636,1699.1,1699.0,9.14283]
[1745345975934,1.17636,1699.1,1699.0,7.9664]
[1745345976643,1.17636,1699.1,1699.0,9.14283]
[1745345979533,1.17636,1699.1,1699.0,7.9664]
[1745345979740,2.92896,1699.1,1699.0,6.322]
[1745345980046,4.38276,1699.1,1699.0,6.322]
[1745345980349,46.54086,1699.1,1699.0,6.322]
[1745345981748,46.54086,1699.1,1699.0,5.58628648]
[1745345983746,51.54086,1699.1,1699.0,5.58628648]
[1745345983948,46.54086,1699.1,1699.0,5.58628648]
[1745345984144,1.17657,1698.8,1698.7,9.4555929]
[1745345984344,1.17657,1698.8,1698.7,10.62831342]
[1745345985247,1.17657,1698.8,1698.7,9.45167342]
[1745345985459,2.81617,1698.8,1698.7,9.45167342]
[1745345985648,2.81617,1698.8,1698.7,10.62831342]
[1745345985950,2.81617,1698.8,1698.7,6.32297342]
[1745345986152,7.39417,1698.8,1698.7,6.32297342]
[1745345986939,4.18637,1698.8,1698.7,6.32297342]
[1745345987645,7.39417,1698.8,1698.7,6.32297342]
[1745345990353,6.02397,1698.8,1698.7,6.32297342]
[1745345990658,6.02397,1698.8,1698.7,7.78857342]
[1745345990957,2.81617,1698.8,1698.7,6.32297342]
[1745345991956,6.02397,1698.8,1698.7,6.32297342]
[1745345992459,2.81617,1698.8,1698.7,6.32297342]
[1745345993154,11.02397,1698.8,1698.7,6.32297342]
[1745345993754,51.82397,1698.8,1698.7,6.32297342]
[1745345994059,51.91498035,1698.8,1698.7,6.32297342]
[1745345994252,51.91498035,1698.8,1698.7,0.00097342]
[1745345994453,51.9149805,1698.8,1698.7,0.00097342]
[1745345996452,51.9149805,1698.8,1698.7,0.00012466]
[1745345997357,1.17712,1698.0,1697.9,3.2078]
[1745345997656,1.17712,1698.0,1697.8,1.6949]
[1745345997657,1.17719,1697.9,1697.8,1.6949]
[1745345998061,2.80519,1697.9,1697.8,1.6949]
[1745345998254,2.80519,1697.9,1697.8,8.0169]
[1745345998859,3.33663654,1697.9,1697.8,7.72242334]
[1745345999164,3.33663654,1697.9,1697.8,7.28071415]
[1745346000263,3.33663654,1697.9,1697.8,0.95871415]
[1745346001176,3.33663654,1697.9,1697.8,7.28071415]
[1745346001575,3.33663654,1697.9,1697.8,6.322]
[1745346001971,44.13663654,1697.9,1697.8,6.322]
[1745346002173,1.17726,1697.8,1697.7,1.39491238]
[1745346002371,1.17726,1697.8,1697.7,3.02941238]
[1745346002678,5.54326,1697.8,1697.7,4.20674238]
[1745346002873,40.8,1697.8,1697.7,9.20674238]
[1745346003080,41.33144654,1697.8,1697.7,9.20674238]
[1745346003374,42.50870654,1697.8,1697.7,15.52874238]
[1745346003580,42.50870654,1697.8,1697.7,9.35141238]
[1745346004176,44.20990654,1697.8,1697.7,6.33081238]
[1745346005184,44.20990654,1697.8,1697.7,7.96671238]
[1745346005484,44.20990654,1697.8,1697.7,6.33081238]
[1745346005981,47.41770654,1697.8,1697.7,7.95181238]
[1745346006571,47.41770654,1697.8,1697.7,6.33081238]
[1745346006772,48.81080654,1697.8,1697.7,6.33081238]
[1745346007972,45.60300654,1697.8,1697.7,6.33081238]
[1745346008372,59.8118778,1697.8,1697.7,3.0341552]
[1745346008577,51.6040778,1697.8,1697.7,5.2e-06]
[1745346008773,55.88100654,1697.8,1697.7,5.2e-06]
[1745346009174,1.17747,1697.5,1697.4,1.621]
[1745346009479,6.07691654,1697.5,1697.4,1.17919203]
[1745346010181,6.07691654,1697.5,1697.4,7.50119203]
[1745346010383,6.07691654,1697.5,1697.4,6.322]
[1745346010578,9.18691654,1697.5,1697.4,6.322]
[1745346010773,9.278003,1697.5,1697.4,6.322]
[1745346011181,8.100533,1697.5,1697.0,6.007]
[1745346011482,1.17775,1697.1,1697.0,3.97696]
[1745346011688,1.17775,1697.1,1697.0,8.97698]
[1745346011884,1.17775,1697.1,1697.0,7.18478]
[1745346012187,1.17775,1697.1,1697.0,9.1212]
[1745346012587,1.70919654,1697.1,1697.0,9.1212]
[1745346012885,3.40929654,1697.1,1697.0,6.322]
[1745346013181,2.23154654,1697.1,1697.0,6.322]
[1745346013482,0.53144654,1697.1,1697.0,15.70761]
[1745346013680,1.70919654,1697.1,1697.0,6.322]
[1745346014079,9.28499654,1697.1,1697.0,6.322]
[1745346014380,1.17788,1696.9,1696.8,1.33339222]
[1745346014587,1.7001,1697.0,1696.8,4.54119222]
[1745346014781,0.00883887,1697.0,1696.9,1.17788]
[1745346015089,0.54028541,1697.0,1696.9,1.17788]
[1745346015284,0.54028541,1697.0,1696.9,12.49988]
[1745346015987,4.3828,1697.6,1697.2,2.94414]
[1745346016187,4.3828,1697.6,1697.5,1.17747]
[1745346016480,4.369,1697.6,1697.5,1.17747]
[1745346016879,5.5464,1697.6,1697.5,1.17747]
[1745346017082,4.369,1697.6,1697.5,10.70727]
[1745346017583,7.24311887,1697.7,1697.6,1.1774]
[1745346017785,7.24311887,1697.7,1697.6,2.9122]
[1745346017982,1.1774,1697.6,1697.5,6.322]
[1745346018289,2.8831,1697.6,1697.5,6.322]
[1745346018588,7.59943887,1697.7,1697.5,7.49947]
[1745346018784,7.59943887,1697.7,1697.6,2.8053]
[1745346018785,5.56896887,1697.7,1697.6,2.8053]
[1745346018974,4.39163887,1697.7,1697.6,2.8053]
[1745346019289,4.37783887,1697.7,1697.6,2.8053]
[1745346019482,4.364,1698.1,1697.6,7.8053]
[1745346019686,1.17718,1698.0,1697.8,1.17725]
[1745346019883,1.17719,1697.9,1697.8,1.17725]
[1745346020079,1.17733,1697.7,1697.6,3.2078]
[1745346020286,1.17733,1697.7,1697.4,3.21663887]
[1745346020287,1.17738,1697.7,1697.4,3.21663887]
[1745346020492,1.17738,1697.7,1697.6,1.1774]
[1745346020682,0.00883887,1697.7,1697.6,1.1774]
[1745346023193,0.00883887,1697.7,1697.6,9.3852]
[1745346023593,4.3768,1698.1,1697.6,9.3852]
[1745346023594,0.0138,1698.1,1698.0,1.17712]
[1745346023888,1.7168,1698.2,1697.9,3.2078]
[1745346023889,1.17712,1698.0,1697.9,3.2078]
[1745346024081,1.17712,1698.0,1697.9,4.9001]
[1745346024286,1.17712,1698.0,1697.9,12.39929]
[1745346024582,1.17712,1698.0,1697.9,11.2221]
[1745346024791,1.17712,1698.0,1697.9,12.39929]
[1745346026084,1.19972887,1698.1,1698.0,1.17712]
[1745346026292,1.19972887,1698.1,1698.0,4.20012]
[1745346026486,1.18592887,1698.1,1698.0,4.20012]
[1745346026687,0.00883887,1698.1,1698.0,5.54802]
[1745346026993,40.8,1698.3,1698.2,1.17698]
[1745346027190,40.8,1698.3,1698.2,10.69298]
[1745346027491,77.087,1698.6,1698.2,10.69298]
[1745346027492,5.53977,1698.6,1698.5,1.17677]
[1745346027994,46.8466346,1698.6,1698.5,1.17677]
[1745346028291,46.8466346,1698.6,1698.5,6.322]
[1745346028490,46.8466346,1698.6,1698.5,8.0282]
[1745346028890,48.4596346,1698.6,1698.5,8.0282]
[1745346029482,48.4596346,1698.6,1698.5,9.20497]
[1745346030587,48.4596346,1698.6,1698.5,7.58668074]
[1745346030789,48.4596346,1698.6,1698.5,5.88048074]
[1745346031390,48.4596346,1698.6,1698.5,7.05725074]
[1745346031792,48.4596346,1698.6,1698.5,5.88048074]
[1745346032291,1.17677,1698.5,1698.4,0.00883887]
[1745346032494,6.10897,1698.5,1698.4,0.00883887]
[1745346033083,6.6158346,1698.5,1698.4,0.00883887]
[1745346033290,1.17698,1698.2,1698.1,1.17701]
[1745346033598,1.17705,1698.1,1698.0,3.2078]
[1745346033793,1.17739,1697.7,1697.5,3.2078]
[1745346033993,1.1774,1697.6,1697.5,4.8781]
[1745346034294,2.8488,1697.6,1697.5,3.2078]
[1745346034489,1.6714,1697.6,1697.5,4.38527]
[1745346034688,0.00883887,1697.7,1697.6,1.1774]
[1745346034890,0.51570347,1697.7,1697.6,2.8477]
[1745346035092,1.69303347,1697.7,1697.6,2.8477]
[1745346035594,0.51570347,1697.7,1697.5,12.16241]
[1745346035794,2.8488,1697.6,1697.5,9.4475]
[1745346036299,2.8488,1697.6,1697.5,6.322]
[1745346036597,3.3556646,1697.6,1697.5,6.322]
[1745346037189,1.17747,1697.5,1697.4,0.00883887]
[1745346037697,2.80977,1697.5,1697.4,0.00883887]
[1745346037897,7.38517,1697.5,1697.4,0.00883887]
[1745346038198,2.9442,1697.2,1696.8,2.59114]
[1745346038388,1.17788,1696.9,1696.8,3.0532]
[1745346038588,41.97788,1696.9,1696.8,4.23115]
[1745346039096,40.8,1696.9,1696.8,10.55315]
[1745346039286,40.8,1696.9,1696.8,10.70775]
[1745346039493,4.362,1697.2,1697.1,1.17775]
[1745346039696,4.362,1697.2,1697.1,4.38555]
[1745346039888,1.6723,1697.4,1697.3,1.17761]
[1745346040088,44.14557937,1697.4,1697.3,4.38541]
[1745346040301,44.14557937,1697.4,1697.3,10.70741]
[1745346040596,44.14557937,1697.4,1697.3,6.322]
[1745346040799,41.29573937,1697.4,1697.3,10.26561629]
[1745346041494,0.49573937,1697.4,1697.3,10.26561629]
[1745346046003,2.20823937,1697.4,1697.3,10.26561629]
[1745346047802,0.49573937,1697.4,1697.3,10.26561629]
[1745346048697,1.67327937,1697.4,1697.3,5.88020629]
[1745346048899,14.08797937,1697.4,1697.3,5.87136742]
[1745346049198,2.94417,1697.3,1697.0,3.2078]
[1745346049404,1.17775,1697.1,1697.0,4.3856]
[1745346049796,0.49573937,1697.1,1697.0,4.3856]
[1745346050196,0.49573937,1697.1,1697.0,10.7076]
[1745346057309,0.49573937,1697.1,1697.0,25.8906]
[1745346057310,9.37e-06,1697.1,1697.0,25.8906]
[1745346058705,0.00883887,1697.7,1697.6,1.1774]
[1745346059011,0.00883887,1697.7,1697.6,4.3852]
[1745346060199,0.00883887,1697.7,1697.6,6.0093]
[1745346063508,1.18616887,1697.7,1697.6,4.3852]
[1745346064196,2.67196887,1697.7,1697.6,3.2078]
[1745346064403,1.1774,1697.6,1697.5,7.49943]
[1745346064609,2.67201887,1697.7,1697.6,1.1774]
[1745346065504,1.1774,1697.6,1697.5,7.4994]
[1745346065712,0.00883887,1697.7,1697.6,1.1774]
[1745346065910,0.00883887,1697.7,1697.6,6.0708]
[1745346066110,0.00883887,1697.7,1697.6,7.5264]
[1745346068113,1.66163887,1697.7,1697.6,7.5264]
[1745346069117,0.00883887,1697.7,1697.6,7.5264]
[1745346071011,0.00883887,1697.7,1697.6,13.3484]
[1745346071722,5.53696,1698.3,1697.6,27.41779]
[1745346071919,1.4897,1698.3,1698.2,1.17691]
[1745346072221,43.46661,1698.3,1698.2,7.49891]
[1745346073215,45.18641,1698.3,1698.2,7.49891]
[1745346074520,44.0095,1698.3,1698.2,10.70671]
[1745346075013,0.00883887,1698.4,1698.3,1.17691]
[1745346075214,0.00883887,1698.4,1698.3,9.22421]
[1745346075418,1.3895,1698.7,1698.6,1.17671]
[1745346075621,3.1093,1698.7,1698.6,1.17671]
[1745346076016,43.9093,1698.7,1698.6,1.17671]
[1745346076623,0.00883887,1698.8,1698.7,1.17664]
[1745346076826,0.00883887,1698.8,1698.7,4.38444]
[1745346077121,1.61923887,1698.8,1698.7,10.70644]
[1745346077619,0.00883887,1698.8,1698.7,10.70644]
[1745346077818,1.6104,1699.1,1699.0,1.17643]
[1745346078021,1.60648052,1699.1,1699.0,1.17643]
[1745346078209,1.60648052,1699.1,1699.0,7.49843]
[1745346078614,1.60648052,1699.1,1699.0,9.14203]
[1745346080021,0.00883887,1699.2,1699.0,9.14203]
[1745346080022,0.00883887,1699.2,1699.1,1.17636]
[1745346080228,0.00883887,1699.2,1699.1,4.38416]
[1745346080427,0.00883887,1699.2,1699.1,5.85976]
[1745346081224,1.77433887,1699.2,1699.1,5.85976]
[1745346082026,1.77433887,1699.2,1699.1,4.38416]
[1745346082222,1.77433887,1699.2,1699.1,1.17636]
[1745346082524,2.95062887,1699.2,1699.1,1.17636]
[1745346083525,1.77433887,1699.2,1699.1,1.17636]
[1745346084321,1.77433887,1699.2,1699.1,6.16726]
[1745346084518,0.00883887,1699.2,1699.1,6.16726]
[1745346085125,1.65453887,1699.2,1699.1,6.16726]
[1745346085322,2.83082887,1699.2,1699.1,1.17636]
[1745346085626,4.31212887,1699.2,1699.1,1.17636]
[1745346086825,3.13583887,1699.2,1699.1,1.17636]
[1745346087027,1.17636,1699.1,1699.0,6.33083887]
[1745346087229,8.57056,1699.1,1699.0,6.30432226]
[1745346087427,13.57056,1699.1,1699.0,6.30432226]
[1745346088227,1.17671,1698.6,1698.5,1.17672]
[1745346088428,1.17671,1698.6,1698.5,1.17280052]
[1745346088930,5.5934,1698.7,1698.6,1.17671]
[1745346089824,4.4167,1698.7,1698.6,1.17671]
[1745346090024,5.59334,1698.7,1698.6,1.17671]
[1745346090527,4.4167,1698.7,1698.6,1.17671]
[1745346090737,5.59334,1698.7,1698.6,1.17671]
[1745346091732,1.17671,1698.6,1698.5,12.44253]
[1745346092030,2.89101,1698.6,1698.5,7.49877]
[1745346092331,2.89101,1698.6,1698.5,1.17677]
[1745346092535,1.7143,1698.6,1698.5,1.17677]
[1745346093030,1.7143,1698.6,1698.5,4.38457]
[1745346093219,1.7143,1698.6,1698.5,10.70657]
[1745346093623,1.7143,1698.6,1698.5,12.12797]
[1745346094240,2.89101,1698.6,1698.5,12.12797]
[1745346094428,2.89101,1698.6,1698.5,8.92017]
[1745346094728,1.7143,1698.6,1698.5,8.92017]
[1745346094933,1.7143,1698.6,1698.5,12.12797]
[1745346095627,4.354,1698.8,1698.7,1.17664]
[1745346095827,1.6247,1698.9,1698.8,1.17657]
[1745346096127,1.6247,1698.9,1698.8,7.49857]
[1745346096332,2.8012,1698.9,1698.8,9.26667]
[1745346097132,2.8012,1698.9,1698.8,7.49857]
[1745346097431,2.8012,1698.9,1698.8,6.322]
[1745346097732,2.8012,1698.9,1698.8,7.49857]
[1745346098829,1.6247,1698.9,1698.8,7.49857]
[1745346099325,1.6247,1698.9,1698.8,9.12957]
[1745346099934,1.4131,1699.0,1698.9,1.1765]
[1745346100134,5.9807,1699.1,1699.0,1.18034948]
[1745346100429,5.9807,1699.1,1699.0,2.58834948]
[1745346100636,1.6267,1699.1,1699.0,4.32263]
[1745346101238,2.80306,1699.1,1699.0,10.64463]
[1745346101929,2.80306,1699.1,1699.0,7.49843]
[1745346103134,1.6267,1699.1,1699.0,7.49843]
[1745346103331,1.6267,1699.1,1699.0,9.11073]
[1745346103925,0.00883887,1699.2,1699.1,1.17636]
[1745346104135,0.00883887,1699.2,1699.1,7.46096]
[1745346104333,40.8,1699.3,1699.2,1.17629]
[1745346104533,40.8,1699.3,1699.2,2.78859]
[1745346105133,1.6925,1699.6,1699.5,1.17608]
[1745346105434,8.52225,1699.8,1699.7,1.17594]
[1745346106136,1.17594,1699.7,1699.6,2.78827]
[1745346106327,48.1463,1699.8,1699.5,4.6979]
[1745346106534,48.1463,1699.8,1699.5,1.17605]
[1745346106535,1.17601,1699.6,1699.5,1.17605]
[1745346106733,1.17598,1699.7,1699.6,1.17594]
[1745346107336,49.32223,1699.8,1699.7,1.17594]
[1745346108437,40.8,1699.8,1699.7,4.38374]
[1745346108640,40.8,1699.8,1699.7,2.66974]
[1745346108842,41.97587,1699.8,1699.7,2.66974]
[1745346109537,41.97591,1699.8,1699.7,1.17594]
[1745346112342,1.17601,1699.6,1699.5,5.87763]
[1745346112638,2.68598,1699.7,1699.6,1.17601]
[1745346113443,1.17601,1699.6,1699.5,7.56323]
[1745346113639,1.17608,1699.5,1699.4,7.00695887]
[1745346114439,1.17608,1699.5,1699.4,5.83083887]
[1745346114747,6.17608,1699.5,1699.4,0.00883887]
[1745346115342,1.17608,1699.5,1699.4,0.00883887]
[1745346115743,1.17608,1699.5,1699.4,1.18498887]
[1745346116242,5.81278,1699.6,1699.5,1.17608]
[1745346116646,1.17608,1699.5,1699.4,1.18494887]
[1745346116948,1.17608,1699.5,1699.4,1.18498887]
[1745346117146,2.82488,1699.5,1699.4,1.18498887]
[1745346119045,2.82488,1699.5,1699.4,0.00883887]
[1745346124653,1.17643,1699.1,1699.0,1.1764]
[1745346125057,1.17643,1699.0,1698.9,4.34067]
[1745346126155,1.1765,1698.9,1698.8,0.00883887]
[1745346126348,1.1765,1698.9,1698.8,0.00491939]
[1745346126754,2.8185,1698.9,1698.8,0.00491939]
[1745346127148,43.6185,1698.9,1698.8,0.00491939]
[1745346127855,44.08651948,1698.9,1698.8,0.00491939]
[1745346130048,43.70949663,1698.9,1698.8,0.00491939]
[1745346130250,43.70949716,1698.9,1698.8,0.00491939]
[1745346130550,43.6185,1698.9,1698.8,0.00491939]
[1745346131253,43.6185,1698.9,1698.8,6.32691939]
[1745346133354,42.442,1698.9,1698.8,7.50348939]
[1745346133658,42.442,1698.9,1698.8,9.16088939]
[1745346133955,4.35883887,1699.0,1698.9,1.1765]
[1745346134156,4.35491939,1699.0,1698.9,9.1473]
[1745346134349,45.15491939,1699.0,1698.9,9.1473]
[1745346134949,4.35491939,1699.0,1698.9,9.1473]
[1745346136157,45.15491939,1699.0,1698.9,9.1473]
[1745346137255,4.35491939,1699.0,1698.9,9.1473]
[1745346138053,4.35491939,1699.0,1698.9,12.3551]
[1745346139762,4.35491939,1699.0,1698.9,9.1473]
[1745346139952,6.08371939,1699.0,1698.9,9.1473]
[1745346142052,4.35491939,1699.0,1698.9,9.1473]
[1745346143963,4.35491939,1699.0,1698.9,12.3551]
[1745346144268,4.35491939,1699.0,1698.9,9.1473]
[1745346146054,42.2996,1699.2,1699.1,1.17636]
[1745346146259,40.8,1699.2,1699.1,4.38416]
[1745346147561,1.7495,1699.5,1699.4,1.17615]
[1745346147864,5.8108,1699.6,1699.5,1.17608]
[1745346148361,46.6108,1699.6,1699.5,1.17608]
[1745346148962,45.146,1699.6,1699.5,4.38388]
[1745346149256,40.8,1699.6,1699.5,4.38388]
[1745346149856,0.00883887,1699.7,1699.6,1.17601]
[1745346150056,0.00883887,1699.7,1699.6,5.71161]
[1745346151859,0.00883887,1699.7,1699.6,11.53361]
[1745346152759,8.87e-06,1699.7,1699.6,11.53361]
[1745346156055,8.87e-06,1699.7,1699.6,5.71161]
[1745346159765,8.87e-06,1699.7,1699.5,1.17603]
[1745346159766,1.17606,1699.6,1699.5,1.17603]
[1745346160063,9.14256,1699.6,1699.5,1.17603]
[1745346160266,9.14256,1699.6,1699.2,2.94069]
[1745346160267,1.17614,1699.5,1699.4,1.17612]
[1745346160459,2.82064,1699.5,1699.4,1.17612]
[1745346160770,7.82064,1699.5,1699.4,1.17612]
[1745346161361,9.8523,1699.5,1699.0,3.2078]
[1745346161671,3.2078,1699.3,1699.0,3.2078]
[1745346161865,4.6174,1699.2,1699.0,3.2078]
[1745346162068,1.7431,1699.1,1699.0,4.38423]
[1745346162269,1.7431,1699.1,1699.0,10.70623]
[1745346164470,1.7431,1699.1,1699.0,12.35363]
[1745346171572,1.7431,1699.1,1699.0,10.70623]
[1745346174576,2.91946,1699.1,1699.0,7.49843]
[1745346174778,6.12726,1699.1,1699.0,7.49843]
[1745346175679,2.91946,1699.1,1699.0,7.49843]
[1745346178070,2.91946,1699.1,1699.0,6.322]
[1745346178480,2.91946,1699.1,1699.0,7.49843]
[1745346180072,1.7431,1699.1,1699.0,7.49843]
[1745346180678,1.4866,1699.2,1699.1,1.17636]
[1745346180881,1.4866,1699.2,1699.1,2.89386]
[1745346180882,4.29219,1699.2,1699.1,2.89386]
[1745346182074,3.1159,1699.2,1699.1,2.89386]
[1745346182681,1.4291,1699.4,1699.3,1.17622]
[1745346182870,1.7785,1699.4,1699.3,1.17622]
[1745346183070,4.341,1699.5,1699.4,1.17615]
[1745346183281,1.7785,1699.6,1699.5,1.17608]
[1745346183676,1.7785,1699.6,1699.5,2.82398]
[1745346183978,8.87e-06,1699.7,1699.6,1.17601]
[1745346184182,1.77850887,1699.7,1699.6,2.82391]
[1745346184879,8.87e-06,1699.7,1699.6,2.82391]
[1745346185075,1.17594887,1699.7,1699.6,1.17601]
[1745346185382,2.93754887,1699.7,1699.6,1.17601]
[1745346185881,1.17608,1699.5,1699.4,2.64361]
[1745346186183,1.17608,1699.5,1699.4,1.17611]
[1745346188187,1.7616,1699.6,1699.5,1.17608]
[1745346188680,8.87e-06,1699.7,1699.6,1.17601]
[1745346188888,8.87e-06,1699.7,1699.6,5.78461]
[1745346195886,8.87e-06,1699.7,1699.6,16.60661]
[1745346198085,8.87e-06,1699.7,1699.6,11.60661]
[1745346199685,1.61770887,1699.7,1699.6,11.60661]
[1745346200190,1.61770887,1699.7,1699.6,5.78461]
[1745346203591,1.61770887,1699.7,1699.6,1.17601]
[1745346203787,1.17601,1699.6,1699.5,1.17603]
[1745346203992,1.17613,1699.5,1699.4,1.17608]
[1745346204188,2.86273,1699.5,1699.4,1.17608]
[1745346206293,1.6866,1699.5,1699.4,1.17608]
[1745346206992,2.86268,1699.5,1699.4,1.17608]
[1745346209299,1.6866,1699.5,1699.4,1.17608]
[1745346210799,2.86268,1699.5,1699.4,1.17608]
[1745346212298,1.6866,1699.5,1699.4,1.17608]
[1745346212499,2.86268,1699.5,1699.4,1.17608]
[1745346212691,1.6866,1699.5,1699.4,1.17608]
[1745346212892,2.86268,1699.5,1699.4,1.17608]
[1745346213094,1.6866,1699.5,1699.4,1.17608]
[1745346213295,2.86268,1699.5,1699.4,1.17608]
[1745346214095,1.6866,1699.5,1699.4,1.17608]
[1745346214295,1.6866,1699.5,1699.4,5.62528]
[1745346214510,1.3856,1699.6,1699.5,1.17608]
[1745346214698,3.0117,1699.6,1699.5,2.87188]
[1745346215694,4.18771,1699.6,1699.5,2.87188]
[1745346215896,4.18771,1699.6,1699.5,1.17608]
[1745346216604,3.0117,1699.6,1699.5,1.17608]
[1745346216898,4.18771,1699.6,1699.5,1.17608]
[1745346217497,3.0117,1699.6,1699.5,1.17608]
[1745346217893,4.18771,1699.6,1699.5,1.17608]
[1745346218093,3.0117,1699.6,1699.5,1.17608]
[1745346218300,4.18771,1699.6,1699.5,1.17608]
[1745346218507,3.0117,1699.6,1699.5,1.17608]
[1745346219097,4.18771,1699.6,1699.5,1.17608]
[1745346220596,3.0117,1699.6,1699.5,1.17608]
[1745346221902,1.6261,1699.6,1699.5,2.91688]
[1745346222098,1.6261,1699.6,1699.5,6.12468]
[1745346225199,1.6261,1699.6,1699.5,2.91688]
[1745346225912,8.87e-06,1699.7,1699.6,1.17601]
[1745346226407,8.87e-06,1699.7,1699.6,2.81711]
[1745346229215,8.87e-06,1699.7,1699.6,8.63911]
[1745346229413,8.87e-06,1699.7,1699.6,13.63911]
[1745346231414,8.87e-06,1699.7,1699.6,8.63911]
[1745346231706,2.86714887,1699.7,1699.6,2.81711]
[1745346231913,1.69120887,1699.7,1699.6,1.17601]
[1745346232109,1.69120887,1699.7,1699.6,2.91161]
[1745346232508,2.86714887,1699.7,1699.6,2.91161]
[1745346233210,1.69120887,1699.7,1699.5,2.94021]
[1745346233412,1.69120887,1699.7,1699.6,6.11941]
[1745346233609,2.86714887,1699.7,1699.6,2.91161]
[1745346233818,1.69120887,1699.7,1699.6,2.91161]
[1745346234010,2.86714887,1699.7,1699.6,2.91161]
[1745346234211,1.69120887,1699.7,1699.6,2.91161]
[1745346234715,2.86714887,1699.7,1699.6,2.91161]
[1745346237116,1.69120887,1699.7,1699.6,2.91161]
[1745346238816,2.86714887,1699.7,1699.6,2.91161]
[1745346239114,1.69120887,1699.7,1699.6,2.91161]
[1745346240916,2.86714887,1699.7,1699.6,2.91161]
[1745346241217,2.86714887,1699.7,1699.6,1.17601]
[1745346241616,1.69120887,1699.7,1699.6,1.17601]
[1745346242018,1.69120887,1699.7,1699.6,2.84771]
[1745346242512,8.87e-06,1699.7,1699.6,2.84771]
[1745346242713,8.87e-06,1699.7,1699.6,6.05551]
[1745346245716,8.87e-06,1699.7,1699.6,16.87751]
[1745346249409,8.87e-06,1699.7,1699.6,11.87751]
[1745346249618,8.87e-06,1699.7,1699.6,6.05551]
[1745346249917,8.87e-06,1699.7,1699.6,4.38381]
[1745346250117,1.73270887,1699.7,1699.6,6.00961]
[1745346253220,1.73270887,1699.7,1699.6,4.38381]
[1745346254110,1.73270887,1699.7,1699.6,6.16091]
[1745346255725,2.90870887,1699.7,1699.6,1.17601]
[1745346256223,1.17607,1699.6,1699.5,1.17602]
[1745346256424,2.83887,1699.6,1699.5,1.17602]
[1745346257516,1.6628,1699.6,1699.5,1.17602]
[1745346258020,2.83881,1699.6,1699.5,1.17602]
[1745346258225,1.6628,1699.6,1699.5,1.17602]
[1745346258820,8.87e-06,1699.7,1699.6,1.17601]
[1745346259024,8.87e-06,1699.7,1699.6,5.74601]
[1745346261028,1.34440887,1699.7,1699.6,5.74601]
[1745346261228,2.95800887,1699.7,1699.6,2.53821]
[1745346261522,4.37870887,1699.7,1699.6,5.74601]
[1745346262519,5.55464887,1699.7,1699.6,4.38381]
[1745346263236,4.37870887,1699.7,1699.6,4.38381]
[1745346263452,5.55464887,1699.7,1699.6,4.38381]
[1745346264351,5.55464887,1699.7,1699.6,1.17601]
[1745346266429,4.37870887,1699.7,1699.6,1.17601]
[1745346267321,2.95800887,1699.7,1699.6,4.38381]
[1745346267728,2.95800887,1699.7,1699.6,6.08001]
[1745346268027,8.87e-06,1699.7,1699.6,6.08001]
[1745346268829,1.70890887,1699.7,1699.6,6.08001]
[1745346269626,8.87e-06,1699.7,1699.6,6.08001]
[1745346270432,8.87e-06,1699.7,1699.6,11.90201]
[1745346271828,1.70360887,1699.7,1699.6,11.90201]
[1745346272134,1.70360887,1699.7,1699.6,6.99801]
[1745346272326,1.70360887,1699.7,1699.6,10.20581]
[1745346273225,2.87954887,1699.7,1699.6,6.99801]
[1745346273625,2.87954887,1699.7,1699.6,5.822]
[1745346273822,2.87954887,1699.7,1699.6,6.26261252]
[1745346276436,2.87954887,1699.7,1699.6,1.17601]
[1745346280347,8.87e-06,1699.7,1699.6,4.38381]
[1745346282256,8.87e-06,1699.7,1699.6,11.22361252]
[1745346284348,8.87e-06,1699.7,1699.6,16.22361252]
[1745346284549,8.87e-06,1699.7,1699.6,11.22361252]
[1745346285556,8.87e-06,1699.7,1699.6,16.22361252]
[1745346285755,8.87e-06,1699.7,1699.6,20.54261252]
[1745346285958,8.87e-06,1699.7,1699.6,15.54261252]
[1745346286750,8.87e-06,1699.7,1699.6,20.54261252]
[1745346290357,8.87e-06,1699.7,1699.6,15.54261252]
[1745346293459,8.87e-06,1699.7,1699.6,20.54261252]
[1745346293663,8.87e-06,1699.7,1699.6,15.54261252]
[1745346305373,8.87e-06,1699.7,1699.6,16.93021252]
[1745346308066,1.4578,1700.2,1700.1,1.17567]
[1745346308372,3.1098,1700.2,1700.1,4.38347]
[1745346308573,8.1098,1700.2,1700.1,4.38347]
[1745346309462,9.2854,1700.2,1700.1,1.17567]
[1745346309667,8.1098,1700.2,1700.1,1.17567]
[1745346309870,9.28543,1700.2,1700.1,1.17567]
[1745346310070,1.17567,1700.1,1700.0,1.18452887]
[1745346310273,2.89387,1700.1,1700.0,1.18452887]
[1745346310472,7.89387,1700.1,1700.0,1.18452887]
[1745346310668,6.7182,1700.1,1700.0,1.18452887]
[1745346310870,1.7182,1700.1,1700.0,1.18452887]